[Event "Early-Titled-Tuesday-Blitz-February-20-2024"]
[Site "Chess.com"]
[Date "2024.02.20"]
[Round "2"]
[White "CSB7"]
[Black "Statham_01"]
[Result "1-0"]
[WhiteElo "2780"]
[BlackElo "2549"]
[TimeControl "180+1"]
[EndTime "8:18:54 PST"]
[Termination "CSB7 won by resignation"]

1. e4 {[%clk 0:03:00.9]} 1... e5 {[%clk 0:02:59.4]} 2. Nf3 {[%clk 0:02:59.7]}
2... Nc6 {[%clk 0:02:59.8]} 3. Bc4 {[%clk 0:02:59.6]} 3... Bc5 {[%clk
0:02:56.2]} 4. c3 {[%clk 0:02:56.7]} 4... Nf6 {[%clk 0:02:50.3]} 5. d4 {[%clk
0:02:55.5]} 5... exd4 {[%clk 0:02:48]} 6. e5 {[%clk 0:02:55.9]} 6... d5 {[%clk
0:02:47.3]} 7. Bb5 {[%clk 0:02:55.9]} 7... Ne4 {[%clk 0:02:46.5]} 8. cxd4 {[%clk
0:02:55.3]} 8... Bb6 {[%clk 0:02:47.1]} 9. Nc3 {[%clk 0:02:55]} 9... Bg4 {[%clk
0:02:46.9]} 10. Be3 {[%clk 0:02:55.2]} 10... O-O {[%clk 0:02:46.1]} 11. h3
{[%clk 0:02:55.7]} 11... Bh5 {[%clk 0:02:45.6]} 12. Qc2 {[%clk 0:02:56]} 12...
f5 {[%clk 0:02:44]} 13. Nxd5 {[%clk 0:02:39.4]} 13... Ba5+ {[%clk 0:01:58.4]}
14. Kf1 {[%clk 0:02:36.7]} 14... Kh8 {[%clk 0:01:46.2]} 15. Bc4 {[%clk
0:01:54.9]} 15... f4 {[%clk 0:01:03.4]} 16. Nxf4 {[%clk 0:01:27.8]} 16... Bxf3
{[%clk 0:01:03.2]} 17. gxf3 {[%clk 0:01:27.2]} 17... Ng5 {[%clk 0:00:36]} 18.
Rg1 {[%clk 0:01:05.8]} 18... Nxd4 {[%clk 0:00:24.4]} 19. Ng6+ {[%clk 0:01:00.5]}
19... hxg6 {[%clk 0:00:23.3]} 20. Qxg6 {[%clk 0:01:01.4]} 20... Ndxf3 {[%clk
0:00:08.2]} 21. Bxg5 {[%clk 0:00:47.8]} 21... Qe8 {[%clk 0:00:05.5]} 22. Qxe8
{[%clk 0:00:24.4]} 22... Raxe8 {[%clk 0:00:06.4]} 23. Rg4 {[%clk 0:00:18.8]}
23... Bb6 {[%clk 0:00:06.9]} 24. Kg2 {[%clk 0:00:12.1]} 24... g6 {[%clk
0:00:05]} 25. e6 {[%clk 0:00:10.5]} 25... Nxg5 {[%clk 0:00:04.6]} 26. Rxg5
{[%clk 0:00:10.5]} 26... Rxf2+ {[%clk 0:00:05.3]} 27. Kh1 {[%clk 0:00:11]} 27...
Kh7 {[%clk 0:00:03.6]} 28. Rag1 {[%clk 0:00:09.9]} 28... Rf6 {[%clk 0:00:02.5]}
29. Re1 {[%clk 0:00:08.4]} 29... c6 {[%clk 0:00:02.8]} 30. Re2 {[%clk
0:00:08.5]} 30... Bc7 {[%clk 0:00:03.2]} 31. Rg4 {[%clk 0:00:09]} 31... Rf1+
{[%clk 0:00:03.8]} 32. Kg2 {[%clk 0:00:09.3]} 32... Rf5 {[%clk 0:00:04.7]} 33.
Bd3 {[%clk 0:00:08.6]} 33... Rf6 {[%clk 0:00:04.8]} 34. Rge4 {[%clk 0:00:07]}
34... Rf5 {[%clk 0:00:04.3]} 35. Bc4 {[%clk 0:00:07]} 35... Rg5+ {[%clk
0:00:04.8]} 36. Kf2 {[%clk 0:00:06.5]} 36... b5 {[%clk 0:00:05.1]} 37. Bb3
{[%clk 0:00:06.3]} 37... Bb6+ {[%clk 0:00:06]} 38. Ke1 {[%clk 0:00:06.2]} 38...
Ba5+ {[%clk 0:00:05.9]} 39. Kd1 {[%clk 0:00:06.4]} 39... Rd8+ {[%clk 0:00:06.3]}
40. Kc2 {[%clk 0:00:07]} 40... Rc5+ {[%clk 0:00:06.9]} 41. Kb1 {[%clk
0:00:05.2]} 41... Rf8 {[%clk 0:00:07.5]} 42. a3 {[%clk 0:00:04.6]} 42... Re8
{[%clk 0:00:05.8]} 43. e7 {[%clk 0:00:04.5]} 43... Rf5 {[%clk 0:00:05.6]} 44.
Ka2 {[%clk 0:00:04.5]} 44... c5 {[%clk 0:00:05.8]} 45. Be6 {[%clk 0:00:05]}
45... Rf6 {[%clk 0:00:03.4]} 46. Bd7 {[%clk 0:00:05.5]} 46... Rxe7 {[%clk
0:00:03.7]} 47. Rxe7+ {[%clk 0:00:05.4]} 47... Kh6 {[%clk 0:00:04.6]} 48. R7e6
{[%clk 0:00:06]} 48... Rf3 {[%clk 0:00:04.3]} 49. Bxb5 {[%clk 0:00:06.2]} 49...
Kg5 {[%clk 0:00:03.6]} 50. Be8 {[%clk 0:00:06.6]} 50... Kf5 {[%clk 0:00:03.1]}
51. Bxg6+ {[%clk 0:00:05.9]} 51... Kg5 {[%clk 0:00:03.2]} 52. Bb1 {[%clk
0:00:06.4]} 52... c4 {[%clk 0:00:03.1]} 53. R6e5+ {[%clk 0:00:06.8]} 53... Kh4
{[%clk 0:00:03.5]} 54. Rxa5 {[%clk 0:00:05.8]} 54... c3 {[%clk 0:00:04.4]} 55.
Ra4+ {[%clk 0:00:06.3]} 55... Kg3 {[%clk 0:00:04.4]} 56. Rg4+ {[%clk 0:00:05.8]}
56... Kxh3 {[%clk 0:00:04.4]} 57. Reg2 {[%clk 0:00:05.7]} 57... c2 {[%clk
0:00:03.4]} 58. R4g3+ {[%clk 0:00:04.9]} 58... Rxg3 {[%clk 0:00:03]} 59. Rxg3+
{[%clk 0:00:05.8]} 59... Kxg3 {[%clk 0:00:03.9]} 60. Bxc2 {[%clk 0:00:06.6]}
60... Kf4 {[%clk 0:00:04.8]} 61. Kb3 {[%clk 0:00:06.8]} 61... Ke5 {[%clk
0:00:05.7]} 62. Kb4 {[%clk 0:00:07.7]} 62... Kd6 {[%clk 0:00:06.6]} 63. Ka5
{[%clk 0:00:08.1]} 63... Kc5 {[%clk 0:00:07.5]} 64. Ka6 {[%clk 0:00:08.8]} 64...
Kc4 {[%clk 0:00:08]} 65. Kxa7 {[%clk 0:00:08.3]} 1-0

[Event "Early-Titled-Tuesday-Blitz-February-20-2024"]
[Site "Chess.com"]
[Date "2024.02.20"]
[Round "2"]
[White "Hsper248"]
[Black "ClaudiaSof"]
[Result "1-0"]
[WhiteElo "2659"]
[BlackElo "2332"]
[TimeControl "180+1"]
[EndTime "8:18:54 PST"]
[Termination "Hsper248 won by resignation"]

1. e4 {[%clk 0:02:17.9]} 1... e5 {[%clk 0:02:58.6]} 2. Nf3 {[%clk 0:02:15.7]}
2... Nc6 {[%clk 0:02:58.2]} 3. Bc4 {[%clk 0:02:16.3]} 3... Nf6 {[%clk
0:02:57.7]} 4. d3 {[%clk 0:02:16.8]} 4... h6 {[%clk 0:02:57.5]} 5. a4 {[%clk
0:02:14]} 5... d6 {[%clk 0:02:57.3]} 6. a5 {[%clk 0:02:13.4]} 6... a6 {[%clk
0:02:57.2]} 7. Nc3 {[%clk 0:02:11.5]} 7... g6 {[%clk 0:02:57]} 8. h3 {[%clk
0:02:08.3]} 8... Bg7 {[%clk 0:02:57.1]} 9. O-O {[%clk 0:02:05.7]} 9... O-O
{[%clk 0:02:56.3]} 10. Re1 {[%clk 0:02:03.7]} 10... Kh7 {[%clk 0:02:54.3]} 11.
d4 {[%clk 0:01:56.8]} 11... exd4 {[%clk 0:02:47]} 12. Nxd4 {[%clk 0:01:55.4]}
12... Bd7 {[%clk 0:02:46.8]} 13. Nf3 {[%clk 0:01:40.2]} 13... Ne5 {[%clk
0:02:42.5]} 14. Bb3 {[%clk 0:01:34]} 14... Bc6 {[%clk 0:02:41.3]} 15. Bf4 {[%clk
0:01:31.3]} 15... Nxf3+ {[%clk 0:02:34.4]} 16. Qxf3 {[%clk 0:01:32.2]} 16... Nd7
{[%clk 0:02:31.2]} 17. Bd5 {[%clk 0:00:58.9]} 17... Qf6 {[%clk 0:02:24.1]} 18.
Qg4 {[%clk 0:00:40.7]} 18... Rad8 {[%clk 0:02:16.4]} 19. Rad1 {[%clk 0:00:36.6]}
19... Ne5 {[%clk 0:02:09.2]} 20. Qg3 {[%clk 0:00:34]} 20... Rfe8 {[%clk
0:02:04.8]} 21. Be3 {[%clk 0:00:22.8]} 21... g5 {[%clk 0:01:54.2]} 22. Bd4
{[%clk 0:00:21.6]} 22... Qg6 {[%clk 0:01:52.7]} 23. f4 {[%clk 0:00:16.2]} 23...
gxf4 {[%clk 0:01:50.4]} 24. Qxf4 {[%clk 0:00:17.1]} 24... Rg8 {[%clk 0:01:46.9]}
25. Re2 {[%clk 0:00:16.9]} 25... Rdf8 {[%clk 0:01:45]} 26. Kh1 {[%clk
0:00:16.6]} 26... h5 {[%clk 0:01:32.2]} 27. Rf1 {[%clk 0:00:15.3]} 27... Bh6
{[%clk 0:01:28.2]} 28. Qf5 {[%clk 0:00:14.8]} 28... Rh8 {[%clk 0:00:45.9]} 29.
Ref2 {[%clk 0:00:13.4]} 29... f6 {[%clk 0:00:41.7]} 30. Bxc6 {[%clk 0:00:09.3]}
30... bxc6 {[%clk 0:00:40.9]} 31. Bxe5 {[%clk 0:00:09.2]} 31... dxe5 {[%clk
0:00:35.6]} 32. Qd7+ {[%clk 0:00:09.8]} 32... Rf7 {[%clk 0:00:34.5]} 33. Qxc6
{[%clk 0:00:10.1]} 33... Rg8 {[%clk 0:00:33.6]} 34. Nd5 {[%clk 0:00:10.6]} 34...
Bg5 {[%clk 0:00:31.8]} 35. Qe6 {[%clk 0:00:11]} 35... Bh4 {[%clk 0:00:31.5]} 36.
Re2 {[%clk 0:00:11.7]} 36... c6 {[%clk 0:00:28.7]} 37. Qxc6 {[%clk 0:00:11.4]}
37... Bg3 {[%clk 0:00:19.1]} 38. Qe6 {[%clk 0:00:11.6]} 38... Rgf8 {[%clk
0:00:17.4]} 39. Qf5 {[%clk 0:00:12.1]} 39... Kh6 {[%clk 0:00:16.9]} 40. Qxg6+
{[%clk 0:00:12.3]} 40... Kxg6 {[%clk 0:00:16.7]} 41. Rf3 {[%clk 0:00:13.2]}
41... Bh4 {[%clk 0:00:16.1]} 42. g3 {[%clk 0:00:13.7]} 42... Bg5 {[%clk
0:00:16.3]} 43. h4 {[%clk 0:00:14.6]} 43... Bh6 {[%clk 0:00:16.2]} 44. b4 {[%clk
0:00:15.1]} 44... Rc8 {[%clk 0:00:13.7]} 45. Ref2 {[%clk 0:00:15.1]} 45... Bg7
{[%clk 0:00:13.2]} 46. c3 {[%clk 0:00:15.1]} 46... Rc4 {[%clk 0:00:13]} 47. Re3
{[%clk 0:00:15]} 47... Rd7 {[%clk 0:00:12.3]} 48. Rf5 {[%clk 0:00:14.7]} 48...
Rd8 {[%clk 0:00:11.1]} 49. Rf1 {[%clk 0:00:14.6]} 49... Rd6 {[%clk 0:00:10.3]}
50. Ne7+ {[%clk 0:00:14.7]} 50... Kf7 {[%clk 0:00:09.6]} 51. Nf5 {[%clk
0:00:15.3]} 51... Rdc6 {[%clk 0:00:09.6]} 52. Ref3 {[%clk 0:00:15.2]} 52... Kg6
{[%clk 0:00:09.4]} 53. Ne7+ {[%clk 0:00:15.4]} 53... Kf7 {[%clk 0:00:09.2]} 54.
Nxc6 {[%clk 0:00:16.3]} 54... Rxc6 {[%clk 0:00:09.4]} 55. Rd1 {[%clk 0:00:17.2]}
55... Ke6 {[%clk 0:00:09.5]} 56. Rdd3 {[%clk 0:00:17.5]} 56... Bf8 {[%clk
0:00:09.8]} 57. Kg2 {[%clk 0:00:18.2]} 57... Be7 {[%clk 0:00:10]} 58. Rf1 {[%clk
0:00:18.6]} 58... Rc4 {[%clk 0:00:10.2]} 59. Kf3 {[%clk 0:00:18.4]} 59... f5
{[%clk 0:00:09.8]} 60. exf5+ {[%clk 0:00:18.4]} 60... Kxf5 {[%clk 0:00:10]} 61.
Ke2+ {[%clk 0:00:19.3]} 61... Ke6 {[%clk 0:00:10.2]} 62. Re3 {[%clk 0:00:19.5]}
62... e4 {[%clk 0:00:10.4]} 63. Rf4 {[%clk 0:00:19.9]} 63... Ke5 {[%clk
0:00:10.6]} 64. Rf7 {[%clk 0:00:20.1]} 64... Bf6 {[%clk 0:00:09.4]} 65. Rh7
{[%clk 0:00:20.3]} 65... Kf5 {[%clk 0:00:09.1]} 66. Rxh5+ {[%clk 0:00:21]} 66...
Kg4 {[%clk 0:00:09.4]} 67. Rh6 {[%clk 0:00:21.6]} 67... Be5 {[%clk 0:00:09.7]}
68. Rg6+ {[%clk 0:00:22.2]} 68... Kh3 {[%clk 0:00:09.9]} 69. Rg5 {[%clk
0:00:22.6]} 69... Bxc3 {[%clk 0:00:08.6]} 70. g4+ {[%clk 0:00:23.5]} 70... Kxh4
{[%clk 0:00:08.3]} 71. Rc5 {[%clk 0:00:24.4]} 71... Rxc5 {[%clk 0:00:07.2]} 72.
bxc5 {[%clk 0:00:25.3]} 72... Bxa5 {[%clk 0:00:07.6]} 73. Rxe4 {[%clk
0:00:25.8]} 73... Kg5 {[%clk 0:00:08]} 74. c6 {[%clk 0:00:26.5]} 74... Bc7
{[%clk 0:00:08]} 75. Ra4 {[%clk 0:00:27.2]} 75... a5 {[%clk 0:00:07.5]} 76. Rd4
{[%clk 0:00:27.9]} 76... Kf6 {[%clk 0:00:07.6]} 77. Rd7 {[%clk 0:00:28.8]} 1-0

[Event "Early-Titled-Tuesday-Blitz-February-20-2024"]
[Site "Chess.com"]
[Date "2024.02.20"]
[Round "2"]
[White "CFN_Good_Evening"]
[Black "bazar-wokzal"]
[Result "1-0"]
[WhiteElo "2209"]
[BlackElo "2681"]
[TimeControl "180+1"]
[EndTime "8:18:58 PST"]
[Termination "CFN_Good_Evening won on time"]

1. d4 {[%clk 0:03:00.9]} 1... Nf6 {[%clk 0:02:59.4]} 2. Nc3 {[%clk 0:03:01.1]}
2... d5 {[%clk 0:02:59.4]} 3. Bf4 {[%clk 0:03:01.5]} 3... e6 {[%clk 0:02:57.7]}
4. Nb5 {[%clk 0:02:56.1]} 4... Na6 {[%clk 0:02:57]} 5. e3 {[%clk 0:02:56.6]}
5... c6 {[%clk 0:02:52.7]} 6. Nc3 {[%clk 0:02:56.3]} 6... Bb4 {[%clk 0:02:50.3]}
7. Bxa6 {[%clk 0:02:55.3]} 7... bxa6 {[%clk 0:02:50.2]} 8. Ne2 {[%clk
0:02:55.8]} 8... c5 {[%clk 0:02:39.9]} 9. a3 {[%clk 0:02:55.2]} 9... Bxc3+
{[%clk 0:02:39.4]} 10. Nxc3 {[%clk 0:02:54.4]} 10... cxd4 {[%clk 0:02:37.9]} 11.
exd4 {[%clk 0:02:51.5]} 11... O-O {[%clk 0:02:36.5]} 12. O-O {[%clk 0:02:51.3]}
12... a5 {[%clk 0:02:36.1]} 13. Na4 {[%clk 0:02:50.7]} 13... Ba6 {[%clk
0:02:28.5]} 14. Re1 {[%clk 0:02:50.3]} 14... Nd7 {[%clk 0:02:28.1]} 15. Nc5
{[%clk 0:02:45]} 15... Nxc5 {[%clk 0:02:27.5]} 16. dxc5 {[%clk 0:02:45.8]} 16...
a4 {[%clk 0:02:23.2]} 17. Bd6 {[%clk 0:02:45.2]} 17... Re8 {[%clk 0:02:22.7]}
18. b4 {[%clk 0:02:40.3]} 18... axb3 {[%clk 0:02:22.4]} 19. cxb3 {[%clk
0:02:38.5]} 19... Bb5 {[%clk 0:02:16.2]} 20. a4 {[%clk 0:02:37.7]} 20... Bc6
{[%clk 0:02:16.3]} 21. b4 {[%clk 0:02:37.8]} 21... a6 {[%clk 0:02:16.6]} 22. Qd3
{[%clk 0:02:21.1]} 22... Qd7 {[%clk 0:02:13.6]} 23. Qc2 {[%clk 0:02:02.5]} 23...
Ra7 {[%clk 0:02:08.1]} 24. f4 {[%clk 0:02:01.5]} 24... Rb7 {[%clk 0:02:05.5]}
25. Reb1 {[%clk 0:01:54.4]} 25... f6 {[%clk 0:02:05.1]} 26. Qd3 {[%clk
0:01:48.6]} 26... Bxa4 {[%clk 0:01:57.6]} 27. Qxa6 {[%clk 0:01:48.3]} 27... Bb5
{[%clk 0:01:56.2]} 28. Qa2 {[%clk 0:01:46.6]} 28... Bc4 {[%clk 0:01:53.5]} 29.
Qb2 {[%clk 0:01:45.8]} 29... h5 {[%clk 0:01:41.4]} 30. Rc1 {[%clk 0:01:40.2]}
30... Bb5 {[%clk 0:01:39.5]} 31. Ra5 {[%clk 0:01:32.5]} 31... Bc6 {[%clk
0:01:36.8]} 32. Rb1 {[%clk 0:01:21.5]} 32... Bb5 {[%clk 0:01:34]} 33. Rba1
{[%clk 0:01:20.8]} 33... h4 {[%clk 0:01:29.7]} 34. h3 {[%clk 0:01:19.2]} 34...
Rd8 {[%clk 0:01:16.6]} 35. Ra8 {[%clk 0:01:18.1]} 35... Bc6 {[%clk 0:01:05]} 36.
R8a5 {[%clk 0:01:10.2]} 36... Bb5 {[%clk 0:01:02.6]} 37. Qf2 {[%clk 0:01:09.9]}
37... Bd3 {[%clk 0:00:55.5]} 38. R1a3 {[%clk 0:00:59.8]} 38... Be4 {[%clk
0:00:47.8]} 39. Rb3 {[%clk 0:00:59.7]} 39... Rb5 {[%clk 0:00:36.9]} 40. Rxb5
{[%clk 0:00:52.8]} 40... Qxb5 {[%clk 0:00:36.6]} 41. Qxh4 {[%clk 0:00:53.5]}
41... Qe2 {[%clk 0:00:29.9]} 42. Rg3 {[%clk 0:00:52.7]} 42... Kf7 {[%clk
0:00:22.5]} 43. Kh2 {[%clk 0:00:42.7]} 43... Ra8 {[%clk 0:00:20.2]} 44. f5
{[%clk 0:00:42.9]} 44... Bxf5 {[%clk 0:00:15.9]} 45. c6 {[%clk 0:00:42.1]} 45...
Ra1 {[%clk 0:00:14.3]} 46. Rf3 {[%clk 0:00:32.1]} 46... Rc1 {[%clk 0:00:11.4]}
47. c7 {[%clk 0:00:27.9]} 47... Qd1 {[%clk 0:00:10.2]} 48. Qh5+ {[%clk
0:00:20.2]} 48... Kg8 {[%clk 0:00:03.4]} 49. Qe8+ {[%clk 0:00:20.1]} 49... Kh7
{[%clk 0:00:03.5]} 50. c8=Q {[%clk 0:00:19.6]} 50... Qg1+ {[%clk 0:00:02.9]} 51.
Kg3 {[%clk 0:00:18.9]} 51... Qe1+ {[%clk 0:00:03.1]} 52. Kh2 {[%clk 0:00:14]}
52... Qg1+ {[%clk 0:00:02.8]} 53. Kg3 {[%clk 0:00:11.8]} 53... Qe1+ {[%clk
0:00:03.5]} 54. Rf2 {[%clk 0:00:11.9]} 54... Qe3+ {[%clk 0:00:03.5]} 55. Kh2
{[%clk 0:00:11.8]} 55... Rxc8 {[%clk 0:00:03]} 56. Qxc8 {[%clk 0:00:08.6]} 56...
Qxf2 {[%clk 0:00:03.4]} 57. Bg3 {[%clk 0:00:08.4]} 57... Qb2 {[%clk 0:00:02.9]}
58. Qe8 {[%clk 0:00:07.8]} 1-0

[Event "Early-Titled-Tuesday-Blitz-February-20-2024"]
[Site "Chess.com"]
[Date "2024.02.20"]
[Round "2"]
[White "Sofia_Blokhin"]
[Black "Zq1"]
[Result "0-1"]
[WhiteElo "2249"]
[BlackElo "2510"]
[TimeControl "180+1"]
[EndTime "8:19:01 PST"]
[Termination "Zq1 won by resignation"]

1. d4 {[%clk 0:03:00.9]} 1... Nf6 {[%clk 0:02:47.6]} 2. c4 {[%clk 0:03:00.2]}
2... a6 {[%clk 0:02:46.8]} 3. Nc3 {[%clk 0:02:58.9]} 3... c5 {[%clk 0:02:46.1]}
4. d5 {[%clk 0:02:57.5]} 4... b5 {[%clk 0:02:45.4]} 5. cxb5 {[%clk 0:02:53.6]}
5... axb5 {[%clk 0:02:44.7]} 6. Nxb5 {[%clk 0:02:50.3]} 6... Qa5+ {[%clk
0:02:43.4]} 7. Nc3 {[%clk 0:02:49.9]} 7... Bb7 {[%clk 0:02:43.4]} 8. Bd2 {[%clk
0:02:42.3]} 8... Qb6 {[%clk 0:02:42.5]} 9. e4 {[%clk 0:02:34.3]} 9... e6 {[%clk
0:02:41.2]} 10. dxe6 {[%clk 0:02:27.3]} 10... fxe6 {[%clk 0:02:40.3]} 11. f3
{[%clk 0:02:18.2]} 11... Nc6 {[%clk 0:02:36.2]} 12. Be2 {[%clk 0:02:11.2]} 12...
Nd4 {[%clk 0:02:29.2]} 13. Rb1 {[%clk 0:02:05.5]} 13... Be7 {[%clk 0:02:20.9]}
14. Nh3 {[%clk 0:02:04.5]} 14... Nxe2 {[%clk 0:02:16.7]} 15. Nxe2 {[%clk
0:01:59.5]} 15... Rxa2 {[%clk 0:02:07.2]} 16. Bc3 {[%clk 0:01:57]} 16... O-O
{[%clk 0:01:57.8]} 17. O-O {[%clk 0:01:55.8]} 17... d5 {[%clk 0:01:57.1]} 18.
exd5 {[%clk 0:01:50.4]} 18... exd5 {[%clk 0:01:56.4]} 19. Nhf4 {[%clk 0:01:19]}
19... d4 {[%clk 0:01:50.9]} 20. Be1 {[%clk 0:01:18.6]} 20... Rxb2 {[%clk
0:01:40.7]} 21. Rxb2 {[%clk 0:01:15.5]} 21... Qxb2 {[%clk 0:01:40.4]} 22. Nd3
{[%clk 0:01:15.2]} 22... Qb5 {[%clk 0:01:39.5]} 23. Bg3 {[%clk 0:01:05.2]} 23...
Ba6 {[%clk 0:01:37.5]} 24. Nec1 {[%clk 0:00:46.6]} 24... Nd5 {[%clk 0:01:31.7]}
25. Re1 {[%clk 0:00:41.1]} 25... Ne3 {[%clk 0:01:29.7]} 26. Qd2 {[%clk
0:00:37.6]} 26... c4 {[%clk 0:01:09.1]} 27. Nf4 {[%clk 0:00:34.6]} 27... Bb4
{[%clk 0:00:53.4]} 28. Qxd4 {[%clk 0:00:29.7]} 28... Bxe1 {[%clk 0:00:42.7]} 29.
Qxe3 {[%clk 0:00:28.8]} 29... Bxg3 {[%clk 0:00:41.1]} 30. hxg3 {[%clk
0:00:28.8]} 30... Re8 {[%clk 0:00:39.8]} 31. Qc3 {[%clk 0:00:24]} 31... Qc5+
{[%clk 0:00:39.4]} 32. Kh2 {[%clk 0:00:23]} 32... Qe3 {[%clk 0:00:34.8]} 33. Qa5
{[%clk 0:00:20.1]} 33... Qxc1 {[%clk 0:00:20.9]} 34. Qxa6 {[%clk 0:00:19.9]}
34... h6 {[%clk 0:00:15.4]} 35. Qc6 {[%clk 0:00:18.9]} 35... Qe3 {[%clk
0:00:04.1]} 36. Qd5+ {[%clk 0:00:18.4]} 36... Kh7 {[%clk 0:00:02.8]} 37. Qf5+
{[%clk 0:00:17.9]} 37... Kg8 {[%clk 0:00:02.7]} 38. Qd5+ {[%clk 0:00:15.7]}
38... Kh8 {[%clk 0:00:03]} 39. Ng6+ {[%clk 0:00:14.9]} 39... Kh7 {[%clk
0:00:03.2]} 40. Qf5 {[%clk 0:00:13.8]} 40... Kg8 {[%clk 0:00:03.8]} 41. Qd5+
{[%clk 0:00:13.1]} 41... Kh7 {[%clk 0:00:03.9]} 42. Qf5 {[%clk 0:00:13.2]} 42...
Kg8 {[%clk 0:00:03.8]} 43. Qd5+ {[%clk 0:00:13.3]} 43... Qe6 {[%clk 0:00:04.3]}
44. Qh5 {[%clk 0:00:06.9]} 44... c3 {[%clk 0:00:04.1]} 45. Nf4 {[%clk
0:00:06.2]} 45... Qf7 {[%clk 0:00:03.7]} 46. Qc5 {[%clk 0:00:05.2]} 46... Re7
{[%clk 0:00:02.3]} 47. Qxc3 {[%clk 0:00:05.1]} 47... Re8 {[%clk 0:00:02.4]} 48.
Qc5 {[%clk 0:00:05]} 48... Rf8 {[%clk 0:00:02.3]} 49. Qc6 {[%clk 0:00:05.3]}
49... Qf6 {[%clk 0:00:01.9]} 50. Qd5+ {[%clk 0:00:05.2]} 50... Qf7 {[%clk
0:00:02.1]} 51. Qc5 {[%clk 0:00:05.4]} 51... Kh7 {[%clk 0:00:02.3]} 52. Qd4
{[%clk 0:00:05.3]} 52... g6 {[%clk 0:00:02.5]} 53. Qd3 {[%clk 0:00:05.5]} 53...
Qf5 {[%clk 0:00:02.3]} 54. Qd6 {[%clk 0:00:05.2]} 54... Rf7 {[%clk 0:00:02.9]}
55. Qc6 {[%clk 0:00:04.6]} 55... Qf6 {[%clk 0:00:03.2]} 56. Qd5 {[%clk
0:00:04.6]} 56... h5 {[%clk 0:00:03.4]} 57. Qc5 {[%clk 0:00:04.6]} 57... h4
{[%clk 0:00:03.7]} 58. gxh4 {[%clk 0:00:04.4]} 58... Qxf4+ {[%clk 0:00:03.3]}
59. g3 {[%clk 0:00:04.2]} 59... Qf5 {[%clk 0:00:02.9]} 60. Qc6 {[%clk
0:00:03.8]} 60... Qxf3 {[%clk 0:00:02.8]} 61. Qd6 {[%clk 0:00:04.2]} 61... Qf2+
{[%clk 0:00:02.8]} 62. Kh3 {[%clk 0:00:04.2]} 62... Qf5+ {[%clk 0:00:03.4]} 63.
Kh2 {[%clk 0:00:04.5]} 63... Qf6 {[%clk 0:00:03.7]} 64. Qd5 {[%clk 0:00:04.2]}
64... Re7 {[%clk 0:00:04]} 65. Qc5 {[%clk 0:00:03.8]} 65... Re2+ {[%clk
0:00:03.7]} 66. Kh3 {[%clk 0:00:04.4]} 66... Qf5+ {[%clk 0:00:04]} 67. Qxf5
{[%clk 0:00:03.8]} 67... gxf5 {[%clk 0:00:04.4]} 68. h5 {[%clk 0:00:03.8]} 68...
Kh6 {[%clk 0:00:04.6]} 69. g4 {[%clk 0:00:03.9]} 69... Re3+ {[%clk 0:00:04.5]}
70. Kh4 {[%clk 0:00:04]} 70... Re4 {[%clk 0:00:05.2]} 71. Kg3 {[%clk 0:00:03.7]}
71... Rxg4+ {[%clk 0:00:05.8]} 0-1